fUSD/lending_fUSD_20250828
["ID","MTS","AMOUNT","RATE_DAILY","PERIOD"]
[381792934,1756350644571,-400.0,0.00017999,2]
[381792936,1756350644580,-400.0,0.00017999,2]
[381792938,1756350644590,-400.0,0.00017999,2]
[381792940,1756350644599,-400.0,0.00017999,2]
[381792942,1756350644608,-400.0,0.00017999,2]
[381792944,1756350644618,-400.0,0.00017999,2]
[381792946,1756350644628,-400.0,0.00017999,2]
[381792948,1756350644638,-400.0,0.00017999,2]
[381792951,1756350644648,-400.0,0.00017999,2]
[381792952,1756350644657,-400.0,0.00017999,2]
[381792954,1756350644667,-500.0,0.00017999,2]
[381792956,1756350644676,-500.0,0.00017999,2]
[381792958,1756350644686,-500.0,0.00017999,2]
[381792960,1756350644695,-500.0,0.00017999,2]
[381792962,1756350644705,-500.0,0.00017999,2]
[381792964,1756350644714,-503.43940429,0.00017999,2]
[381792966,1756350644724,-400.0,0.00017999,2]
[381792968,1756350644734,-400.0,0.00017999,2]
[381792970,1756350644744,-400.0,0.00017999,2]
[381792972,1756350644753,-400.0,0.00017999,2]
[381792974,1756350644764,-400.0,0.00017999,2]
[381792976,1756350644774,-397.51,0.00017999,2]
[381792978,1756350644791,-400.0,0.00017999,2]
[381792980,1756350644810,-400.0,0.00017999,2]
[381792982,1756350644829,-400.0,0.00017999,2]
[381792984,1756350644841,-400.0,0.00017999,2]
[381792986,1756350644851,-400.0,0.00017999,2]
[381792988,1756350644860,-400.0,0.00017999,2]
[381792990,1756350644870,-377.61727463,0.00017999,2]
[381792993,1756350644880,-400.0,0.00017999,2]
[381792994,1756350644890,-400.0,0.00017999,2]
[381792997,1756350644899,-400.0,0.00017999,2]
[381792998,1756350644909,-400.0,0.00017999,2]
[381793000,1756350644918,-400.0,0.00017999,2]
[381793002,1756350644928,-400.0,0.00017999,2]
[381793005,1756350644938,-400.0,0.00017999,2]
[381793006,1756350644948,-400.0,0.00017999,2]
[381793008,1756350644958,-400.0,0.00017999,2]
[381793010,1756350644967,-400.0,0.00017999,2]
[381793012,1756350644977,-400.0,0.00017999,2]
[381793014,1756350644986,-500.0,0.00017999,2]
[381793016,1756350644996,-500.0,0.00017999,2]
[381793018,1756350645006,-500.0,0.00017999,2]
[381793020,1756350645016,-500.0,0.00017999,2]
[381793022,1756350645025,-500.0,0.00017999,2]
[381793024,1756350645035,-500.0,0.00017999,2]
[381793026,1756350645045,-500.0,0.00017999,2]
[381793028,1756350645055,-500.0,0.00017999,2]
[381793030,1756350645064,-332.688459,0.00017999,2]
[381793032,1756350645074,-500.0,0.00017999,2]
[381793034,1756350645083,-400.0,0.00017999,2]
[381793036,1756350645093,-400.0,0.00017999,2]
[381793038,1756350645103,-257.71,0.00017999,2]
[381793040,1756350645112,-401.71111612,0.00017999,2]
[381793042,1756350645123,-400.0,0.00017999,2]
[381793044,1756350645133,-283.76147081,0.00017999,2]
[381793046,1756350645143,-485.12,0.00017999,2]
[381793048,1756350645153,-489.35747338,0.00017999,2]
[381793050,1756350645162,-400.0,0.00017999,2]
[381793052,1756350645171,-400.0,0.00017999,2]
[381793054,1756350645181,-400.0,0.00017999,2]
[381793056,1756350645190,-530.76,0.00017999,2]
[381793058,1756350645199,-400.0,0.00017999,2]
[381793060,1756350645209,-400.0,0.00017999,2]
[381793062,1756350645219,-400.0,0.00017999,2]
[381793064,1756350645228,-400.0,0.00017999,2]
[381793066,1756350645237,-400.0,0.00017999,2]
[381793068,1756350645247,-400.0,0.00017999,2]
[381793070,1756350645257,-400.0,0.00017999,2]
[381793072,1756350645266,-151.0,0.00017999,2]
[381793074,1756350645276,-194.82,0.00017999,2]
[381793076,1756350645286,-400.0,0.00017999,2]
[381793078,1756350645299,-1000.0,0.00017999,2]
[381793080,1756350645308,-463.84,0.00017999,2]
[381793082,1756350645318,-400.0,0.00017999,2]
[381793084,1756350645328,-400.0,0.00017999,2]
[381793086,1756350645339,-400.0,0.00017999,2]
[381793088,1756350645348,-400.0,0.00017999,2]
[381793090,1756350645357,-151.0,0.00017999,2]
[381793092,1756350645369,-400.0,0.00017999,2]
[381793094,1756350645379,-400.0,0.00017999,2]
[381793096,1756350645389,-400.0,0.00017999,2]
[381793098,1756350645399,-388.69521621,0.00017999,2]
[381793100,1756350645409,-203.69,0.00017999,2]
[381793102,1756350645418,-400.0,0.00017999,2]
[381793104,1756350645427,-170.40799373,0.00017999,2]
[381793106,1756350645437,-400.0,0.00017999,2]
[381793108,1756350645446,-400.0,0.00017999,2]
[381793110,1756350645456,-227.18199327,0.00017999,2]
[381793112,1756350645466,-400.0,0.00017999,2]
[381793114,1756350645475,-1328.8,0.00017999,2]
[381793116,1756350645485,-424.33,0.00017999,2]
[381793118,1756350645494,-400.0,0.00017999,2]
[381793120,1756350645503,-400.0,0.00017999,2]
[381793122,1756350645514,-503.73,0.00017999,2]
[381793124,1756350645524,-500.0,0.00017999,2]
[381793126,1756350645533,-500.0,0.00017999,2]
[381793128,1756350645543,-500.0,0.00017999,2]
[381793130,1756350645552,-500.0,0.00017999,2]
[381793132,1756350645561,-500.0,0.00017999,2]
[381793134,1756350645571,-500.0,0.00017999,2]
[381793136,1756350645580,-500.0,0.00017999,2]
[381793138,1756350645589,-500.0,0.00017999,2]
[381793140,1756350645598,-500.0,0.00017999,2]
[381793142,1756350645608,-500.0,0.00017999,2]
[381793144,1756350645617,-400.0,0.00017999,2]
[381793146,1756350645627,-400.0,0.00017999,2]
[381793148,1756350645636,-400.0,0.00017999,2]
[381793150,1756350645645,-590.21,0.00017999,2]
[381793152,1756350645654,-547.51,0.00017999,2]
[381793154,1756350645663,-400.0,0.00017999,2]
[381793156,1756350645672,-400.0,0.00017999,2]
[381793158,1756350645682,-400.0,0.00017999,2]
[381793160,1756350645692,-578.38992419,0.00017999,2]
[381793163,1756350645709,-142.91007581,0.00017999,2]
[381793171,1756350645778,-226.648649,0.00017999,2]
[381793200,1756350646045,-305.69,0.00017988,2]
[381793202,1756350646054,-253.30666842,0.00017988,2]
[381793204,1756350646066,-246.69333158,0.00017988,2]
[381793206,1756350646075,-273.351351,0.00017999,2]
[381793208,1756350646084,-400.0,0.00017999,2]
[381793210,1756350646094,-405.99,0.00017999,2]
[381793212,1756350646104,-482.69,0.00017999,2]
[381793214,1756350646113,-151.0,0.00017999,2]
[381793216,1756350646122,-171.04922181,0.00017999,2]
[381793218,1756350646131,-478.64,0.00017999,2]
[381793220,1756350646140,-254.48,0.00017999,2]
[381793222,1756350646150,-665.88,0.00017999,2]
[381793224,1756350646159,-400.0,0.00017999,2]
[381793226,1756350646168,-152.171936,0.00017999,2]
[381793228,1756350646178,-151.0,0.00017999,2]
[381793230,1756350646187,-151.0,0.00017999,2]
[381793232,1756350646196,-150.0,0.00017999,2]
[381793233,1756350646206,-151.0,0.00017999,2]
[381793236,1756350646215,-400.0,0.00017999,2]
[381793237,1756350646225,-400.0,0.00017999,2]
[381793238,1756350646233,-158.64999497,0.00017999,2]
[381793239,1756350646259,-141.21171803,0.00017999,2]
[381793240,1756350646268,-14.40828197,0.00017999,2]
[381793255,1756350646421,-136.59171803,0.00017999,2]
[381793257,1756350646431,-151.0,0.00017999,2]
[381793259,1756350646440,-111.996163,0.00017999,2]
[381793262,1756350646456,-288.003837,0.00017999,2]
[381793264,1756350646467,-400.0,0.00017999,2]
[381793266,1756350646476,-400.0,0.00017999,2]
[381793268,1756350646486,-151.0,0.00017999,2]
[381793270,1756350646496,-400.0,0.00017999,2]
[381793272,1756350646505,-400.0,0.00017999,2]
[381793274,1756350646515,-151.0,0.00017999,2]
[381793276,1756350646525,-1116.3,0.00017999,2]
[381793278,1756350646534,-158.167703,0.00017999,2]
[381793280,1756350646543,-450.49817327,0.00017999,2]
[381793282,1756350646552,-400.0,0.00017999,2]
[381793284,1756350646563,-457.00168443,0.00017999,2]
[381793286,1756350646572,-151.0,0.00017999,2]
[381793288,1756350646581,-151.0,0.00017999,2]
[381793291,1756350646592,-400.0,0.00017999,2]
[381793292,1756350646602,-154.245756,0.00017999,2]
[381793294,1756350646611,-400.0,0.00017999,2]
[381793296,1756350646620,-400.0,0.00017999,2]
[381793298,1756350646631,-400.0,0.00017999,2]
[381793300,1756350646640,-400.0,0.00017999,2]
[381793302,1756350646650,-400.0,0.00017999,2]
[381793304,1756350646659,-400.0,0.00017999,2]
[381793306,1756350646669,-363.28606024,0.00017999,2]
[381793308,1756350646678,-400.0,0.00017999,2]
[381793310,1756350646688,-245.92777839,0.00017999,2]
[381793313,1756350646699,-298.78222161,0.00017999,2]
[381793315,1756350646709,-400.0,0.00017999,2]
[381793317,1756350646718,-500.0,0.00017999,2]
[381793318,1756350646727,-500.0,0.00017999,2]
[381793320,1756350646736,-400.0,0.00017999,2]
[381793322,1756350646745,-500.0,0.00017999,2]
[381793324,1756350646754,-500.0,0.00017999,2]
[381793326,1756350646763,-500.0,0.00017999,2]
[381793328,1756350646772,-500.0,0.00017999,2]
[381793330,1756350646781,-500.0,0.00017999,2]
[381793332,1756350646790,-598.64398976,0.00017999,2]
[381793334,1756350646800,-300.0,0.00017999,2]
[381793336,1756350646809,-400.0,0.00017999,2]
[381793338,1756350646819,-400.0,0.00017999,2]
[381793340,1756350646828,-400.0,0.00017999,2]
[381793342,1756350646837,-375.49209595,0.00017999,2]
[381793344,1756350646846,-400.0,0.00017999,2]
[381793346,1756350646856,-288.080319,0.00017999,2]
[381793348,1756350646865,-765.15,0.00017999,2]
[381793350,1756350646875,-288.080319,0.00017999,2]
[381793352,1756350646885,-151.0,0.00017999,2]
[381793354,1756350646895,-288.080319,0.00017999,2]
[381793356,1756350646904,-151.0,0.00017999,2]
[381793358,1756350646913,-288.080319,0.00017999,2]
[381793360,1756350646922,-400.0,0.00017999,2]
[381793362,1756350646933,-476.67476971,0.00017999,2]
[381793364,1756350646945,-400.0,0.00017999,2]
[381793366,1756350646954,-151.0,0.00017999,2]
[381793368,1756350646963,-151.0,0.00017999,2]
[381793370,1756350646973,-400.0,0.00017999,2]
[381793372,1756350646982,-400.0,0.00017999,2]
[381793374,1756350646992,-400.0,0.00017999,2]
[381793376,1756350647002,-152.876468,0.00017999,2]
[381793378,1756350647011,-151.0,0.00017999,2]
[381793380,1756350647021,-400.0,0.00017999,2]
[381793382,1756350647030,-151.0,0.00017999,2]
[381793384,1756350647040,-400.0,0.00017999,2]
[381793386,1756350647049,-400.0,0.00017999,2]
[381793388,1756350647060,-151.0,0.00017999,2]
[381793390,1756350647070,-400.0,0.00017999,2]
[381793392,1756350647079,-400.0,0.00017999,2]
[381793394,1756350647089,-379.58345131,0.00017999,2]
[381793396,1756350647098,-532.50976266,0.00017999,2]
[381793398,1756350647107,-473.55,0.00017999,2]
[381793400,1756350647116,-151.0,0.00017999,2]
[381793402,1756350647125,-400.0,0.00017999,2]
[381793404,1756350647134,-151.0,0.00017999,2]
[381793406,1756350647144,-400.0,0.00017999,2]
[381793408,1756350647153,-400.0,0.00017999,2]
[381793410,1756350647163,-300.0,0.00017999,2]
[381793412,1756350647172,-400.0,0.00017999,2]
[381793414,1756350647182,-400.0,0.00017999,2]
[381793417,1756350647191,-526.16,0.00017999,2]
[381793419,1756350647201,-400.0,0.00017999,2]
[381793421,1756350647211,-151.0,0.00017999,2]
[381793423,1756350647219,-400.0,0.00017999,2]
[381793425,1756350647228,-151.0,0.00017999,2]
[381793427,1756350647238,-151.0,0.00017999,2]
[381793429,1756350647247,-153.962629,0.00017999,2]
[381793431,1756350647256,-490.08,0.00017999,2]
[381793433,1756350647265,-400.0,0.00017999,2]
[381793435,1756350647275,-151.0,0.00017999,2]
[381793437,1756350647283,-151.0,0.00017999,2]
[381793439,1756350647294,-302.2,0.00017999,2]
[381793441,1756350647305,-400.0,0.00017999,2]
[381793443,1756350647315,-400.0,0.00017999,2]
[381793444,1756350647323,-540.03,0.00017999,2]
[381793446,1756350647332,-448.3053587,0.00017999,2]
[381793449,1756350647345,-400.0,0.00017999,2]
[381793451,1756350647354,-400.0,0.00017999,2]
[381793453,1756350647363,-249.64,0.00017999,2]
[381793455,1756350647373,-400.0,0.00017999,2]
[381793457,1756350647382,-400.0,0.00017999,2]
[381793459,1756350647392,-483.18,0.00017999,2]
[381793461,1756350647402,-400.0,0.00017999,2]
[381793463,1756350647411,-400.0,0.00017999,2]
[381793465,1756350647420,-151.0,0.00017999,2]
[381793467,1756350647429,-298.04382539,0.00017999,2]
[381793469,1756350647438,-400.0,0.00017999,2]
[381793471,1756350647447,-262.249099,0.00017999,2]
[381793473,1756350647457,-400.0,0.00017999,2]
[381793475,1756350647467,-25.1698166,0.00017999,2]
[381793477,1756350647480,-423.7501834,0.00017999,2]
[381793479,1756350647489,-300.0,0.00017999,2]
[381793481,1756350647499,-400.0,0.00017999,2]
[381793483,1756350647510,-151.0,0.00017999,2]
[381793485,1756350647519,-151.0,0.00017999,2]
[381793487,1756350647529,-400.0,0.00017999,2]
[381793489,1756350647538,-400.0,0.00017999,2]
[381793491,1756350647547,-400.0,0.00017999,2]
[381793493,1756350647557,-151.0,0.00017999,2]
[381793495,1756350647566,-151.0,0.00017999,2]
[381793497,1756350647575,-151.0,0.00017999,2]
[381793499,1756350647584,-151.0,0.00017999,2]
[381793501,1756350647593,-500.0,0.00017999,2]
[381793503,1756350647603,-500.0,0.00017999,2]
[381793505,1756350647612,-151.0,0.00017999,2]
[381793507,1756350647622,-151.0,0.00017999,2]
[381793509,1756350647632,-500.0,0.00017999,2]
[381793511,1756350647641,-500.0,0.00017999,2]
[381793513,1756350647650,-500.0,0.00017999,2]
[381793515,1756350647660,-559.68087933,0.00017999,2]
[381793517,1756350647669,-151.0,0.00017999,2]
[381793519,1756350647678,-539.61163264,0.00017999,2]
[381793521,1756350647687,-400.0,0.00017999,2]
[381793523,1756350647696,-400.0,0.00017999,2]
[381793525,1756350647706,-465.96,0.00017999,2]
[381793527,1756350647715,-228.524674,0.00017999,2]
[381793529,1756350647724,-3090.62994206,0.00018,2]
[381793531,1756350647735,-67222.5646907,0.00018,2]
[381793533,1756350647746,-279.6363521,0.00018,2]
[381793535,1756350647758,-327.410967,0.00018,2]
[381793537,1756350647777,-1935.73893635,0.00018,2]
[381794936,1756350727892,-151.0,0.00015966,2]
[381794937,1756350880273,-300.0,0.00015964,2]
[381794938,1756350880296,-443.5672624,0.00015964,2]
[381794939,1756350880320,-186.63442136,0.00015964,2]
[381794940,1756350880343,-228.61935761,0.00015964,2]
[381794941,1756350880367,-365.17895863,0.00015964,2]
[381794943,1756350912573,-150.36,0.00015769,2]
[381794944,1756350915097,-232.25689166,0.00015769,2]
[381794945,1756350919781,-151.0,0.00015769,2]
[381794946,1756350927806,-159.802784,0.00015769,2]
[381794947,1756350942327,-392.1779416,0.00015769,2]
[381794948,1756350949865,-249.64,0.00015769,2]
[381794952,1756351075267,-188.76238274,0.00015769,2]
[381794953,1756351075293,-221.23761726,0.00015963,2]
[381794954,1756351076937,-76.53908539,0.00015963,2]
[381794955,1756351076960,-447.46091461,0.00015963,2]
[381794956,1756351102693,-400.0,0.00015748,2]
[381794957,1756351128721,256.6,8.411e-05,2]
[381794960,1756351270374,-1524.0,0.00015745,2]
[381794961,1756351270398,-335.15308126,0.00015747,2]
[381794962,1756351270420,-140.84691874,0.00015747,2]
[381794963,1756351274399,-228.1,0.00013699,2]
[381794964,1756351274422,-10.55426868,0.00015747,2]
[381794965,1756351274444,-160.03355033,0.00015747,2]
[381794966,1756351274466,-310.49708368,0.00015747,2]
[381794967,1756351274488,-251.0,0.00015748,2]
[381794969,1756351385518,-1039.81509731,0.00015964,2]
[381794970,1756351387763,-960.18490269,0.00015964,2]
[381794973,1756351447537,-169.32218085,0.00015769,2]
[381794974,1756351449066,-222.57947373,0.00015769,2]
[381794975,1756351451755,-1608.09834542,0.00015769,2]
[381794979,1756351508448,-881.18308354,0.00015748,2]
[381794980,1756351512655,-325.253,0.00015748,2]
[381794983,1756351516652,-248.324,0.00015748,2]
[381794984,1756351520269,-545.23991646,0.00015748,2]
[381794985,1756351520291,-325.253,0.00015748,2]
[381794986,1756351523049,-484.255,0.00015748,2]
[381794987,1756351568861,-396.92808354,0.00015745,2]
[381794988,1756351572758,-870.49291646,0.00015745,2]
[381794989,1756351574590,-300.0,0.00015745,2]
[381794990,1756351576186,-248.324,0.00015745,2]
[381794991,1756351577910,-184.255,0.00015745,2]
[381794992,1756351577933,-325.253,0.00015745,2]
[381794994,1756351593391,-219.67508354,0.00016148,2]
[381794997,1756351631067,-152.0,0.00015731,2]
[381794998,1756351633435,-1129.50708354,0.00015731,2]
[381794999,1756351635695,-718.49291646,0.00015731,2]
[381795000,1756351635721,-3.05698002,0.00016148,2]
[381795002,1756351691409,-1751.676,0.00015721,2]
[381795003,1756351694264,-248.324,0.00015721,2]
[381795004,1756351755011,-248.324,0.0001572,2]
[381795005,1756351756721,-1357.70152627,0.0001572,2]
[381795006,1756351758375,-393.97447373,0.0001572,2]
[381795007,1756351763339,239.0,0.00030137,120]
[381795018,1756351832261,-464.92551868,0.00016261,2]
[381795020,1756351832316,-147.23726532,0.00016261,2]
[381795021,1756351832330,-250.0,0.00016344,2]
[381795022,1756351832339,-160.0,0.00016349,7]
[381795023,1756351832348,-43.00288789,0.00016368,2]
[381795024,1756351832372,-956.99711211,0.00016368,2]
[381795025,1756351832381,-217.34795857,0.00016394,2]
[381795026,1756351832391,-666.0,0.00016395,3]
[381795027,1756351832399,-265.07,0.00016445,2]
[381795028,1756351832409,-381.04,0.00016657,2]
[381795029,1756351832419,-156.2751093,0.00016668,2]
[381795030,1756351832428,-152.61369255,0.00016668,2]
[381795031,1756351832438,-237.06471131,0.00016668,2]
[381795032,1756351832447,-150.0,0.00016668,2]
[381795033,1756351832457,-151.0,0.000167,2]
[381795034,1756351832466,-1388.23,0.00016725,2]
[381795035,1756351832475,-1200.0,0.00016747,2]
[381795036,1756351832485,-714.8,0.00016748,2]
[381795037,1756351832495,-150.0,0.00016768,2]
[381795038,1756351832504,-215.0,0.000168,2]
[381795039,1756351832513,-200.0,0.00016806,2]
[381795040,1756351832523,-300.0,0.0001682,2]
[381795041,1756351832532,-1000.0,0.00016821,2]
[381795042,1756351832541,-287.59,0.00016825,2]
[381795043,1756351832550,-273.95,0.00016844,2]
[381795044,1756351832560,-200.0,0.00016863,2]
[381795045,1756351832574,-528.82,0.00016888,2]
[381795046,1756351832583,-167.9,0.00016899,2]
[381795047,1756351832593,-2434.74389024,0.00016981,2]
[381795048,1756351832603,-257.91778498,0.00016981,2]
[381795049,1756351832612,-1583.1900195,0.00016981,2]
[381795050,1756351832622,-300.0,0.00016999,2]
[381795051,1756351832632,-150.0,0.00017019,2]
[381795052,1756351832641,-1245.14499943,0.00017036,2]
[381795053,1756351832651,-272.0,0.00017277,2]
[381795054,1756351832661,-407.99,0.00017278,2]
[381795055,1756351832671,-169.49754188,0.00017338,2]
[381795056,1756351832681,-225.0,0.00017427,2]
[381795057,1756351832690,-200.0,0.00017438,2]
[381795058,1756351832700,-322.6107,0.00017438,2]
[381795059,1756351832710,-151.0,0.00017438,2]
[381795060,1756351832719,-300.0,0.00017438,2]
[381795061,1756351832728,-200.0,0.00017438,2]
[381795062,1756351832738,-151.0,0.00017438,2]
[381795063,1756351832748,-500.0,0.00017438,2]
[381795064,1756351832761,-300.0,0.00017438,2]
[381795065,1756351832771,-300.0,0.00017438,2]
[381795066,1756351832780,-300.0,0.00017438,2]
[381795067,1756351832790,-209.24022704,0.00017438,2]
[381795068,1756351832802,-151.0,0.00017438,2]
[381795069,1756351832814,-151.0,0.00017438,2]
[381795070,1756351832824,-151.0,0.00017438,2]
[381795071,1756351832836,-151.0,0.00017438,2]
[381795072,1756351832847,-151.0,0.00017438,2]
[381795073,1756351832856,-151.0,0.00017438,2]
[381795074,1756351832866,-162.56481276,0.00017438,2]
[381795075,1756351832875,-250.0,0.00017438,2]
[381795076,1756351832885,-250.0,0.00017438,2]
[381795077,1756351832894,-151.64403034,0.00017438,2]
[381795078,1756351832904,-695.39793187,0.00017438,2]
[381795079,1756351832913,-250.0,0.00017438,2]
[381795080,1756351832923,-250.0,0.00017438,2]
[381795081,1756351832933,-250.0,0.00017438,2]
[381795082,1756351832943,-250.0,0.00017438,2]
[381795083,1756351832953,-1000.0,0.00017438,2]
[381795084,1756351832962,-250.0,0.00017438,2]
[381795085,1756351832971,-1000.0,0.00017438,2]
[381795086,1756351832982,-250.0,0.00017438,2]
[381795087,1756351832991,-1000.0,0.00017438,2]
[381795088,1756351833001,-250.0,0.00017438,2]
[381795089,1756351833011,-1000.0,0.00017438,2]
[381795090,1756351833029,-250.0,0.00017438,2]
[381795091,1756351833039,-1000.0,0.00017438,2]
[381795092,1756351833049,-250.0,0.00017438,2]
[381795093,1756351833060,-1000.0,0.00017438,2]
[381795094,1756351833070,-259.59389338,0.00017438,2]
[381795095,1756351833080,-396.39724577,0.00017438,2]
[381795096,1756351833090,-1000.0,0.00017438,2]
[381795097,1756351833099,-1000.0,0.00017438,2]
[381795098,1756351833109,-1000.0,0.00017438,2]
[381795099,1756351833119,-1000.0,0.00017438,2]
[381795100,1756351833130,-1000.0,0.00017438,2]
[381795101,1756351833139,-1000.0,0.00017438,2]
[381795102,1756351833149,-1017.9339042,0.00017438,2]
[381795103,1756351833162,-49.72297392,0.00017438,2]
[381795104,1756351833172,-622.02746571,0.00017459,2]
[381795105,1756351833182,-173.07,0.00017468,2]
[381795106,1756351833192,-156.587,0.00017493,2]
[381795107,1756351833201,-500.0,0.00017493,2]
[381795108,1756351833211,-1600.0,0.000175,6]
[381795109,1756351833221,-162.380719,0.00017548,2]
[381795110,1756351833231,-225.0,0.00017575,2]
[381795111,1756351833241,-714.8,0.00017586,2]
[381795112,1756351833251,-881.46536882,0.00017587,2]
[381795113,1756351833261,-3300.0,0.000176,6]
[381795114,1756351833271,-168.3888056,0.00017603,2]
[381795115,1756351833280,-150.0,0.00017605,2]
[381795116,1756351833290,-174.61919141,0.00017658,2]
[381795117,1756351833300,-225.0,0.00017674,2]
[381795118,1756351833309,-151.0,0.00017689,2]
[381795119,1756351833319,-168.47039583,0.0001769,2]
[381795120,1756351833328,-327.208804,0.000177,2]
[381795121,1756351833340,-342.87488324,0.000177,2]
[381795122,1756351833357,-5628.98888884,0.000177,2]
[381795123,1756351833368,-5000.0,0.000177,6]
[381795124,1756351833379,-5370.57,0.000177,2]
[381795125,1756351833390,-181.08010149,0.00017713,2]
[381795126,1756351833400,-1594.408554,0.00017723,2]
[381795127,1756351833410,-306.66,0.00017752,2]
[381795128,1756351833419,-187.78006525,0.00017768,2]
[381795129,1756351833429,-2387.0,0.00017784,2]
[381795130,1756351833440,-5927.338,0.00017784,2]
[381795131,1756351833450,-151.83071385,0.00017788,2]
[381795132,1756351833459,-150.0,0.00017788,2]
[381795133,1756351833468,-151.60492296,0.00017788,2]
[381795134,1756351833478,-150.0,0.00017788,2]
[381795135,1756351833488,-150.0,0.00017788,2]
[381795136,1756351833497,-150.47178381,0.00017788,2]
[381795137,1756351833508,-150.0,0.00017788,2]
[381795138,1756351833517,-150.0,0.00017788,2]
[381795139,1756351833527,-150.52666959,0.00017788,2]
[381795140,1756351833536,-150.0,0.00017788,2]
[381795141,1756351833546,-150.0,0.00017788,2]
[381795142,1756351833555,-150.0,0.00017788,2]
[381795143,1756351833565,-150.0,0.00017788,2]
[381795144,1756351833575,-150.0,0.00017788,2]
[381795145,1756351833584,-150.0,0.00017788,2]
[381795146,1756351833594,-150.0,0.00017788,2]
[381795147,1756351833604,-150.0,0.00017788,2]
[381795148,1756351833613,-150.0,0.00017788,2]
[381795149,1756351833625,-718.0,0.00017788,2]
[381795150,1756351833635,-150.0,0.00017788,2]
[381795151,1756351833644,-150.21412747,0.00017788,2]
[381795152,1756351833654,-500.0,0.00017788,2]
[381795153,1756351833663,-400.0,0.00017799,2]
[381795154,1756351833673,-400.0,0.00017799,2]
[381795155,1756351833683,-400.0,0.00017799,2]
[381795156,1756351833693,-400.0,0.00017799,2]
[381795157,1756351833703,-400.0,0.00017799,2]
[381795159,1756351833713,-400.0,0.00017799,2]
[381795161,1756351833723,-400.0,0.00017799,2]
[381795162,1756351833733,-400.0,0.00017799,2]
[381795164,1756351833742,-267.75809908,0.00017799,2]
[381795177,1756351834291,-132.24190092,0.00017799,2]
[381795178,1756351834301,-400.0,0.00017799,2]
[381795179,1756351834311,-1520.9,0.00017799,2]
[381795180,1756351834320,-400.0,0.00017799,2]
[381795181,1756351834330,-400.0,0.00017799,2]
[381795182,1756351834340,-400.0,0.00017799,2]
[381795183,1756351834349,-400.0,0.00017799,2]
[381795184,1756351834359,-423.599,0.00017799,2]
[381795185,1756351834368,-158.31439377,0.00017799,2]
[381795186,1756351834378,-400.0,0.00017799,2]
[381795187,1756351834388,-400.0,0.00017799,2]
[381795188,1756351834397,-400.0,0.00017799,2]
[381795189,1756351834406,-153.85050698,0.00017799,2]
[381795190,1756351834417,-246.14949302,0.00017799,2]
[381795191,1756351834427,-400.0,0.00017799,2]
[381795192,1756351834435,-2000.0,0.000178,2]
[381795193,1756351834445,-150.0,0.000178,2]
[381795194,1756351834455,-150.81136151,0.000178,2]
[381795195,1756351834465,-150.0,0.000178,2]
[381795196,1756351834475,-298.39864659,0.000178,2]
[381795197,1756351834484,-150.0,0.000178,2]
[381795198,1756351834494,-647.66369796,0.000178,2]
[381795199,1756351834524,-150.0,0.00017788,2]